bitfinex-derivatives/quotes_ETHF0:USTF0_20260207
["timestamp","ask_amount","ask_price","bid_price","bid_amount"]
[1770448330333,14.26446887,2031.4,2029.7,10.89105532]
[1770448330929,11.47856838,2031.4,2029.7,10.89105532]
[1770448331232,11.47856838,2031.4,2029.8,10.88974997]
[1770448331532,11.47856838,2031.4,2030.0,10.88974997]
[1770448332134,11.47856838,2031.4,2030.1,10.88974997]
[1770448332328,11.47856838,2031.8,2030.1,10.88974997]
[1770448332633,11.47856838,2031.8,2030.2,10.88974997]
[1770448333137,11.47856838,2031.8,2030.3,10.88974997]
[1770448336634,14.26446887,2031.5,2030.0,10.88974997]
[1770448336840,5.58821063,2031.8,2030.0,10.88974997]
[1770448336841,11.47856838,2031.3,2030.0,10.88974997]
[1770448337336,11.47856838,2031.8,2030.1,10.88974997]
[1770448337529,14.26446887,2031.8,2030.1,10.88974997]
[1770448337732,14.26446887,2031.4,2030.1,10.88974997]
[1770448337934,14.26446887,2031.3,2029.8,10.88974997]
[1770448338333,11.47856838,2031.1,2029.8,10.88974997]
[1770448339435,11.47856838,2031.1,2029.7,0.00130535]
[1770448339729,11.47856838,2030.4,2029.2,10.88974997]
[1770448340633,11.4844038,2030.4,2029.2,10.88974997]
[1770448341036,14.27030429,2030.4,2029.2,10.88974997]
[1770448341236,11.4844038,2030.4,2029.2,10.88974997]
[1770448342540,11.4844038,2030.4,2028.6,10.88974997]
[1770448343341,11.4844038,2030.4,2029.1,10.88974997]
[1770448344242,11.47856838,2031.8,2030.2,10.88974997]
[1770448344441,11.47856838,2031.5,2029.7,10.88974997]
[1770448344741,11.47856838,2031.2,2029.7,10.88974997]
[1770448345137,11.48372609,2031.2,2029.7,10.89328321]
[1770448345835,11.48372609,2031.2,2029.7,0.00353324]
[1770448346035,11.47856838,2031.1,2029.7,10.89328321]
[1770448347037,11.47856838,2030.9,2029.7,0.00353324]
[1770448347439,11.47856838,2030.7,2029.7,0.00353324]
[1770448348135,11.47856838,2030.6,2029.0,10.88974997]
[1770448348743,11.47856838,2030.5,2029.0,10.88974997]
[1770448349244,11.47856838,2030.5,2029.0,10.89205215]
[1770448351342,11.47856838,2030.8,2029.3,10.88974997]
[1770448351643,11.47856838,2031.1,2029.7,10.88974997]
[1770448352144,11.47856838,2031.1,2030.1,10.88974997]
[1770448352538,11.47856838,2031.1,2029.8,10.88974997]
[1770448355135,11.47856838,2031.1,2029.9,10.88974997]
[1770448355835,11.47856838,2031.1,2030.2,10.88974997]
[1770448357248,0.00515771,2031.2,2030.2,10.88974997]
[1770448357443,0.00515771,2031.2,2029.8,10.63953894]
[1770448357444,11.24074519,2031.1,2029.8,10.63953894]
[1770448358848,11.24074519,2031.1,2029.1,4.37271123]
[1770448358849,11.24074519,2031.0,2029.5,10.63953894]
[1770448359042,11.24074519,2030.7,2029.1,10.63953894]
[1770448359243,11.24074519,2030.6,2029.1,10.63953894]
[1770448360543,11.24074519,2030.5,2029.0,0.00230218]
[1770448360741,4.919,2029.6,2028.0,10.63953894]
[1770448360947,11.24074519,2029.4,2027.7,10.63953894]
[1770448361339,11.24074519,2029.4,2027.7,10.96633584]
[1770448361647,11.24074519,2028.5,2026.9,10.63953894]
[1770448361848,11.24074519,2028.5,2026.2,4.83559231]
[1770448361849,11.24074519,2028.4,2026.2,0.21595108]
[1770448362048,1.39394632,2026.3,2024.4,3.86085061]
[1770448362343,3.58003419,2026.3,2024.4,3.86441957]
[1770448362646,4.30562075,2026.2,2024.6,11.79749624]
[1770448362837,4.30379463,2026.1,2024.4,0.00356896]
[1770448363145,0.0062888,2026.3,2025.0,15.37124163]
[1770448363346,0.0062888,2026.3,2025.1,11.79749624]
[1770448363548,3.57374539,2027.0,2025.1,11.79749624]
[1770448363846,6.87484698,2028.0,2025.5,11.79749625]
[1770448363847,3.57374539,2027.6,2025.5,11.79749625]
[1770448364040,0.24671,2028.1,2025.8,3.57374539]
[1770448364343,0.24671,2028.1,2024.8,0.2471]
[1770448364344,0.18959705,2027.0,2024.8,11.70269772]
[1770448364548,0.18959705,2026.6,2025.0,11.70269772]
[1770448364747,3.57374539,2026.3,2025.0,11.70269772]
[1770448364946,0.24685,2026.9,2024.4,0.00356896]
[1770448364947,0.18959705,2025.8,2024.4,0.00356896]
[1770448365144,0.19554429,2025.8,2024.4,11.70626668]
[1770448365445,0.0007003,2025.8,2024.6,11.70269772]
[1770448365642,0.18959705,2027.1,2024.9,11.70269772]
[1770448366246,3.36758967,2026.9,2024.9,11.70269772]
[1770448366552,3.3737067,2026.9,2024.9,11.70269772]
[1770448366952,0.00611703,2026.9,2025.3,10.63953894]
[1770448367245,3.3737067,2026.9,2025.3,10.63953894]
[1770448368249,2.7521062,2026.6,2024.4,4.792746]
[1770448368451,2.7521062,2026.2,2024.5,10.63953894]
[1770448369442,2.7521062,2026.8,2024.6,10.63953894]
[1770448370851,2.24236347,2026.7,2024.6,10.63953894]
[1770448372651,2.32354564,2026.6,2024.6,10.63953894]
[1770448373155,2.32354564,2026.6,2024.7,10.63953894]
[1770448373660,2.32354564,2026.6,2024.4,10.6431079]
[1770448373862,2.40990278,2026.3,2024.4,10.6431079]
[1770448374749,2.40990278,2026.8,2024.7,10.63953894]
[1770448375557,0.00611703,2026.9,2025.2,10.63953894]
[1770448376753,2.41148058,2026.9,2025.2,10.63953894]
[1770448377753,0.00611703,2026.9,2025.2,10.63953894]
[1770448378651,0.00611703,2026.9,2025.5,10.63953894]
[1770448379558,2.41310058,2028.4,2025.9,10.63953894]
[1770448379852,2.38200683,2028.2,2025.9,10.63953894]
[1770448380259,2.38200683,2028.2,2026.2,10.63953894]
[1770448380458,2.38200683,2028.0,2026.2,10.63953894]
[1770448380756,2.38200683,2027.6,2026.2,10.64324114]
[1770448381056,0.00626104,2028.0,2026.2,10.64324114]
[1770448381247,2.38826787,2028.0,2026.2,10.64324114]
[1770448381450,0.00626104,2028.0,2026.4,10.63953894]
[1770448381653,2.38826787,2028.0,2026.4,10.63953894]
[1770448382049,2.28130418,2027.7,2026.4,10.63953894]
[1770448382453,2.28130418,2027.7,2026.2,0.0037022]
[1770448382752,2.28130418,2027.5,2026.2,10.66054635]
[1770448382954,2.28130418,2027.5,2026.2,0.0037022]
[1770448383151,2.28130418,2027.5,2025.1,4.78917704]
[1770448383152,2.28130418,2027.4,2025.6,10.65869525]
[1770448383357,2.27760198,2027.0,2025.6,10.65869525]
[1770448384254,2.18725817,2026.8,2025.6,10.66298848]
[1770448385556,2.18725817,2027.1,2025.6,10.66298848]
[1770448387155,4.58117724,2027.0,2025.6,10.66298848]
[1770448387354,2.263016,2027.3,2025.6,10.66298848]
[1770448387554,4.58139089,2027.2,2025.6,10.66298848]
[1770448387854,6.85582205,2027.1,2025.6,10.66298848]
[1770448388056,2.27443116,2027.1,2025.6,10.66298848]
[1770448388358,41.22791745,2027.5,2025.6,10.66298848]
[1770448388657,2.2806922,2028.0,2026.5,10.65825377]
[1770448388959,4.60321902,2027.9,2026.5,10.65825377]
[1770448389156,4.60321902,2027.8,2026.5,10.65825377]
[1770448389357,2.27812895,2027.5,2026.5,10.65825377]
[1770448389558,2.27812895,2027.3,2026.5,10.65825377]
[1770448389761,43.43344767,2027.1,2026.2,11.39723354]
[1770448390057,2.20553022,2026.9,2025.9,11.39723354]
[1770448390262,41.22791745,2026.8,2025.9,11.39723354]
[1770448390463,4.613561,2026.7,2025.9,11.39723354]
[1770448390665,41.22791745,2027.2,2025.9,11.39723354]
[1770448390860,5.47490172,2027.3,2025.9,11.39723354]
[1770448390861,41.22791745,2027.3,2025.9,11.39723354]
[1770448391363,45.86190388,2027.2,2025.9,11.39723354]
[1770448391657,4.63398643,2027.1,2025.9,11.39723354]
[1770448391861,41.22791745,2027.2,2025.9,11.39723354]
[1770448392061,41.22791745,2027.3,2025.9,11.39723354]
[1770448392365,41.22791745,2027.5,2025.9,11.39723354]
[1770448392862,41.22791745,2027.4,2025.9,11.39723354]
[1770448393059,41.22791745,2027.5,2026.3,11.39723354]
[1770448393360,41.22791745,2027.6,2026.3,11.39723354]
[1770448393659,41.22791745,2027.5,2026.3,11.39723354]
[1770448393963,41.22791745,2027.6,2026.4,11.39723354]
[1770448395465,41.22791745,2027.9,2026.6,11.39723354]
[1770448395660,41.22791745,2027.9,2026.9,11.39723354]
[1770448395965,0.00626104,2028.0,2026.9,11.39723354]
[1770448396259,41.22791745,2028.3,2027.5,11.39723354]
[1770448396453,47.95512306,2028.6,2027.5,11.39723354]
[1770448396652,41.22791745,2028.8,2027.8,11.39723354]
[1770448396855,47.95512306,2028.9,2027.8,11.39723354]
[1770448397055,5.47490172,2029.0,2027.8,11.39723354]
[1770448397056,41.22791745,2028.7,2027.8,11.39723354]
[1770448397260,6.72720561,2028.7,2027.8,11.39723354]
[1770448397465,6.7309211,2028.7,2027.8,11.40131171]
[1770448397757,0.00371549,2028.7,2027.8,11.40131171]
[1770448398066,47.93601303,2028.6,2027.8,11.40131171]
[1770448398358,0.00371549,2028.7,2027.8,11.40131171]
[1770448399065,5.47490172,2030.0,2028.5,11.39723354]
[1770448399263,6.70809558,2030.0,2028.5,11.39723354]
[1770448399473,6.70809558,2029.9,2028.5,11.39723354]
[1770448399960,6.71303907,2029.9,2028.5,11.39723354]
[1770448400461,0.00494349,2029.9,2028.5,11.39723354]
[1770448404570,6.24967727,2030.5,2028.8,11.39723354]
[1770448405061,6.25462076,2030.8,2028.8,11.64383354]
[1770448405466,6.26047995,2030.8,2028.8,11.64383354]
[1770448405662,0.00585919,2030.8,2029.1,4.7723727]
[1770448405968,0.00585919,2030.8,2029.2,11.39723354]
[1770448406963,6.28122212,2030.8,2029.2,11.39723354]
[1770448407464,5.76120545,2030.2,2029.2,11.39723354]
[1770448408066,6.22064423,2030.2,2029.2,11.39723354]
[1770448408369,6.22064423,2030.2,2028.9,11.39723354]
[1770448408964,6.22064423,2030.6,2029.4,11.39723354]
[1770448409173,6.22064423,2030.6,2029.4,11.40240201]
[1770448409372,0.00585919,2030.8,2029.4,11.40240201]
[1770448409665,6.22650342,2030.8,2029.4,11.40240201]
[1770448410058,0.00585919,2030.8,2029.4,11.40240201]
[1770448410261,6.09853631,2030.8,2029.4,11.40240201]
[1770448412769,6.5858775,2030.7,2029.4,11.40240201]
[1770448412970,6.5858775,2030.5,2029.4,0.00516847]
[1770448413165,11.5048775,2030.4,2029.4,0.00516847]
[1770448413366,6.5858775,2030.3,2029.4,0.00516847]
[1770448413675,6.5858775,2030.3,2029.4,11.40240201]
[1770448414274,6.5858775,2030.3,2029.4,0.00516847]
[1770448414975,6.6160934,2030.8,2029.4,11.40240201]
[1770448416669,0.00585919,2030.8,2029.4,11.40240201]
[1770448418074,6.43162915,2030.8,2029.4,11.40240201]
[1770448419377,0.00585919,2030.8,2029.4,11.40240201]
[1770448422068,6.4005077,2030.8,2029.4,11.40240201]
[1770448423179,5.76120545,2030.7,2029.4,11.40240201]
[1770448423580,0.00585919,2030.8,2029.4,11.40240201]
[1770448424777,6.18884256,2030.8,2029.4,11.40240201]
[1770448425381,10.29956846,2030.7,2029.4,11.40240201]
[1770448425582,6.18298337,2030.4,2029.4,11.40240201]
[1770448425781,2.75504617,2030.5,2028.3,11.3042119]
[1770448425782,8.11539222,2029.8,2028.3,11.3042119]
[1770448425979,8.11539222,2029.2,2028.1,11.3042119]
[1770448426185,9.05939222,2028.7,2027.8,11.3042119]
[1770448426482,13.17498382,2028.6,2027.8,11.3042119]
[1770448426685,4.1155916,2028.5,2027.8,11.30961774]
[1770448426880,9.0649279,2028.6,2027.8,11.30961774]
[1770448427074,9.0649279,2028.6,2027.8,0.00540584]
[1770448427075,13.17404261,2028.5,2027.8,0.00540584]
[1770448427281,9.05939222,2028.5,2027.8,11.30961774]
[1770448427883,9.30842732,2028.3,2026.7,11.3042119]
[1770448428082,9.30842732,2028.1,2026.7,11.3042119]
[1770448428288,9.30842732,2027.9,2026.7,11.3042119]
[1770448428588,2.75504617,2028.0,2026.7,11.3042119]
[1770448428784,2.75504617,2028.2,2026.7,11.3042119]
[1770448428984,12.06347349,2028.0,2026.7,11.3092305]
[1770448429184,12.06347349,2028.3,2026.7,11.3092305]
[1770448429380,16.11714214,2028.3,2026.7,11.3092305]
[1770448429589,4.05366865,2028.2,2026.7,11.3092305]
[1770448429786,12.10551559,2028.6,2026.7,11.3092305]
[1770448429992,0.00553568,2028.6,2026.7,11.5561005]
[1770448430284,9.34493374,2028.2,2026.7,11.3092305]
[1770448430793,9.34493374,2028.0,2026.7,11.3092305]
[1770448430989,9.34493374,2027.8,2026.7,11.3092305]
[1770448432292,9.63444565,2027.6,2026.0,11.3042119]
[1770448432488,12.38949182,2027.4,2026.0,11.3042119]
[1770448432793,9.63444565,2027.2,2026.0,11.3042119]
[1770448433389,9.63444565,2027.2,2026.0,11.30949818]
[1770448435997,10.0274914,2027.5,2026.0,11.30949818]
[1770448436192,10.0274914,2027.9,2026.0,11.30949818]
[1770448437695,9.83819609,2027.4,2026.0,11.30949818]
[1770448438997,9.83819609,2027.4,2026.0,0.00528628]
[1770448439398,11.21740914,2027.2,2025.6,11.3042119]
[1770448439595,11.21740914,2027.0,2025.0,11.3042119]
[1770448439796,11.21740914,2026.8,2025.0,11.3042119]
[1770448440392,11.22180719,2026.8,2025.0,11.30868023]
[1770448440790,11.21740914,2026.3,2025.0,0.00446833]
[1770448441094,11.21740914,2026.3,2023.4,11.3042119]
[1770448441095,11.46437914,2025.9,2023.4,11.3042119]
[1770448441301,11.46437914,2025.9,2024.0,11.3042119]
[1770448441503,11.21740914,2025.5,2023.9,11.3042119]
[1770448442103,11.21740914,2025.5,2023.9,11.3079651]
[1770448442594,11.21740914,2026.2,2023.9,11.3079651]
[1770448443395,11.21740914,2026.2,2023.9,11.5551751]
[1770448443598,11.21740914,2026.2,2024.1,11.3042119]
[1770448443902,11.21740914,2026.7,2024.6,11.3042119]
[1770448444107,11.21740914,2026.7,2024.8,11.3042119]
[1770448444299,6.87484698,2025.1,2019.1,1.13985]
[1770448444505,4.77971282,2021.6,2018.3,0.24789]
[1770448444703,2.21258655,2021.4,2017.9,9.56551343]
[1770448444894,2.21258655,2020.7,2018.5,11.3042119]
[1770448445203,2.21651334,2020.7,2018.5,2.42284091]
[1770448446402,2.21651334,2020.7,2018.5,1.63684091]
[1770448446403,10.71786501,2020.5,2018.5,1.63684091]
[1770448446596,17.997,2020.4,2018.5,1.63684091]
[1770448446806,10.71786501,2020.2,2018.5,1.63684091]
[1770448446995,10.71786501,2020.0,2018.5,1.63684091]
[1770448447301,0.00392679,2020.7,2018.5,0.00562901]
[1770448447302,10.71786501,2019.8,2018.5,0.00562901]
[1770448447510,10.71786501,2019.6,2018.5,0.00562901]
[1770448448402,10.71786501,2019.6,2018.5,11.12668622]
[1770448449198,10.7815654,2019.9,2018.5,11.12668622]
[1770448449406,10.7815654,2020.6,2018.5,11.12668622]
[1770448449909,10.86775703,2020.6,2018.5,11.12668622]
[1770448450103,10.7815654,2020.6,2018.5,11.12668622]
[1770448450704,10.86775863,2020.6,2018.5,11.12668622]
[1770448451011,10.7815654,2020.6,2018.5,11.12668622]
[1770448451403,10.8677581,2020.6,2018.5,11.12668622]
[1770448451605,10.7815654,2020.6,2018.5,11.12668622]
[1770448451908,10.7815654,2020.2,2018.0,11.49169815]
[1770448452711,10.7815654,2020.2,2018.5,11.49169815]
[1770448452905,10.7815654,2020.2,2018.5,11.49722925]
[1770448455205,10.7815654,2020.6,2018.5,11.49722925]
[1770448459313,0.00392679,2020.7,2018.5,11.49722925]
[1770448459314,10.78549219,2020.7,2018.8,11.49169815]
[1770448459712,0.00392679,2020.7,2018.8,11.49169815]
[1770448460113,0.00392679,2020.7,2018.7,1.14012]
[1770448460114,10.7815654,2021.8,2019.8,11.49169815]
[1770448460314,10.7815654,2021.8,2019.8,11.73940815]
[1770448460520,10.7815654,2022.1,2019.8,11.73940815]
[1770448461117,10.78591726,2022.1,2019.8,11.73940815]
[1770448461418,10.78591726,2022.1,2019.8,11.49169815]
[1770448461419,10.7815654,2021.9,2019.8,11.49169815]
[1770448461812,11.11516092,2021.9,2019.8,11.49169815]
[1770448462716,10.7815654,2021.7,2019.8,11.49169815]
[1770448463513,10.7815654,2021.7,2019.8,11.73940815]
[1770448464028,10.7815654,2021.7,2020.0,11.49169815]
[1770448464220,10.7815654,2021.7,2020.0,11.4952818]
[1770448466721,10.7815654,2021.7,2020.0,11.7429618]
[1770448467512,10.7815654,2021.7,2020.8,11.49169815]
[1770448468224,10.7815654,2021.7,2020.1,11.49169815]
[1770448470621,10.7815654,2022.0,2020.1,11.49169815]
[1770448471720,10.7815654,2021.8,2020.1,11.49169815]
[1770448472320,10.7815654,2021.6,2020.1,11.49169815]
[1770448472727,10.7815654,2021.4,2020.1,11.49169815]
[1770448473221,2.71833972,2021.7,2020.1,11.49169815]
[1770448473527,10.7815654,2021.6,2020.1,11.49169815]
[1770448473924,10.7815654,2021.9,2020.1,11.49169815]
[1770448474120,10.7815654,2021.7,2020.1,11.49169815]
[1770448474425,10.7815654,2021.7,2020.0,0.25126365]
[1770448474426,4.88021544,2021.6,2020.3,11.49169815]
[1770448474625,2.71833972,2021.5,2020.3,11.49169815]
[1770448475026,7.59855516,2021.5,2020.3,11.49169815]
[1770448475223,10.7815654,2021.3,2020.0,11.4952818]
[1770448475424,2.71833972,2021.1,2020.1,11.49169815]
[1770448475627,7.58131308,2021.1,2020.1,11.49169815]
[1770448475831,2.71833972,2021.2,2020.1,11.49169815]
[1770448476023,2.71833972,2021.4,2020.2,10.97072065]
[1770448476222,13.57486825,2021.5,2020.2,10.97072065]
[1770448476528,2.71833972,2021.4,2020.2,10.97072065]
[1770448476727,13.57486825,2021.5,2020.2,10.97072065]
[1770448477020,2.71833972,2021.6,2020.3,10.97072065]
[1770448477221,10.85652853,2021.9,2020.7,10.97072065]
[1770448477421,2.71833972,2022.0,2020.7,10.97072065]
[1770448477726,13.57486825,2021.9,2020.7,10.97072065]
[1770448477925,13.57486825,2021.8,2020.7,10.97072065]
[1770448478131,10.85652853,2021.6,2020.7,10.97072065]
[1770448478326,13.57486825,2021.6,2020.7,10.97072065]
[1770448478530,2.71833972,2021.8,2020.7,10.97072065]
[1770448479031,13.57486825,2021.9,2020.7,10.97072065]
[1770448479230,2.71833972,2021.8,2020.7,10.97072065]
[1770448479626,2.71833972,2021.8,2020.4,10.97072065]
[1770448479627,10.85652853,2021.6,2020.4,10.97072065]
[1770448479925,2.71833972,2021.6,2020.5,10.97072065]
[1770448480727,2.71833972,2021.4,2020.5,10.97072065]
[1770448480931,2.71833972,2021.5,2020.5,10.97072065]
[1770448481528,13.57486825,2021.7,2020.5,10.97072065]
[1770448481830,10.85652853,2021.6,2020.5,10.97072065]
[1770448482231,10.85652853,2021.4,2020.5,10.97072065]
[1770448482431,13.57486825,2021.2,2020.1,10.97072065]
[1770448482620,2.71833972,2021.3,2020.3,10.97072065]
[1770448483430,2.71833972,2021.2,2020.3,10.97072065]
[1770448483832,10.85652853,2021.0,2020.0,10.9743043]
[1770448484022,13.57486825,2020.9,2020.0,0.00358365]
[1770448484230,13.57486825,2020.9,2020.0,10.9743043]
[1770448484231,40.69726055,2020.7,2020.0,10.9743043]
[1770448484426,18.91600414,2021.4,2020.0,10.9743043]
[1770448484427,40.69726055,2021.0,2020.0,10.9743043]
[1770448484627,40.69726055,2021.1,2020.0,10.9743043]
[1770448484928,51.55378908,2021.0,2020.0,10.9743043]
[1770448485126,5.4263014,2021.1,2020.0,0.00358365]
[1770448485127,51.55378908,2020.7,2020.0,0.00358365]
[1770448485431,51.55378908,2020.5,2020.0,0.00358365]
[1770448485733,51.55378908,2020.3,2019.4,10.97072065]
[1770448485925,40.69726055,2020.3,2019.4,10.97072065]
[1770448486127,40.70187197,2020.5,2019.4,10.97072065]
[1770448486331,0.00461142,2020.5,2019.4,10.97072065]
[1770448486828,0.00461142,2020.5,2019.4,10.97573598]
[1770448487128,51.55378908,2021.1,2019.6,10.97072065]
[1770448487338,10.85652853,2020.9,2019.6,10.97072065]
[1770448487527,40.69726055,2020.6,2019.6,10.97072065]
[1770448487726,40.69726055,2020.7,2019.6,10.97072065]
[1770448488129,38.66046567,2021.1,2019.7,10.97072065]
[1770448488329,10.85652853,2021.2,2019.7,10.97072065]
[1770448488936,10.85652853,2021.1,2019.7,10.97072065]
[1770448489436,10.85652853,2021.0,2019.7,10.97072065]
[1770448489637,16.28282993,2021.0,2019.7,10.97072065]
[1770448489835,10.85652853,2020.9,2019.7,10.97072065]
[1770448490839,10.85652853,2020.7,2019.7,10.97072065]
[1770448491535,10.85652853,2020.4,2019.4,10.97573598]
[1770448492531,10.85652853,2020.4,2019.4,0.00501533]
[1770448492830,10.85652853,2020.2,2019.4,0.00501533]
[1770448493035,16.28282993,2020.2,2019.4,0.00501533]
[1770448493239,16.28282993,2020.2,2017.5,9.00298028]
[1770448493240,10.85652853,2018.9,2013.7,8.87069244]
[1770448493427,4.8117564,2015.7,2013.3,10.97072065]
[1770448493628,4.937,2016.6,2013.9,10.97072065]
[1770448493826,6.87660052,2016.2,2014.3,10.97072065]
[1770448494036,8.25192062,2016.4,2014.5,10.97072065]
[1770448494333,18.42655043,2016.7,2014.5,10.97072065]
[1770448494529,0.00355012,2016.4,2014.7,10.97072065]
[1770448494734,8.25192062,2017.5,2014.9,10.97072065]
[1770448495042,4.8117564,2017.4,2014.9,10.97072065]
[1770448495336,4.8117564,2017.4,2014.5,4.81604127]
[1770448495337,4.8117564,2017.4,2015.1,10.97072065]
[1770448495531,10.85652853,2017.3,2015.1,10.97072065]
[1770448495731,10.85652853,2017.3,2015.3,10.97072065]
[1770448496026,10.85652853,2016.7,2014.6,44.13017323]
[1770448496232,10.85652853,2016.7,2014.7,10.97072065]
[1770448496436,10.85652853,2016.6,2014.7,10.97072065]
[1770448496634,10.85652853,2016.6,2014.8,44.13017323]
[1770448496841,4.937,2016.2,2014.6,44.13017323]
[1770448497139,10.85652853,2016.1,2014.6,44.13017323]
[1770448497534,10.85652853,2016.1,2014.7,10.97072065]
[1770448497937,10.85652853,2016.1,2014.8,55.10089388]
[1770448498136,10.85652853,2016.1,2014.9,10.97072065]
[1770448498437,10.85652853,2016.1,2014.7,10.97072065]
[1770448498937,10.85652853,2016.1,2014.9,10.97072065]
[1770448499236,10.85652853,2016.1,2014.8,10.97072065]
[1770448499436,10.85652853,2016.1,2014.9,44.13017323]
[1770448499835,10.85652853,2016.1,2014.9,55.10089388]
[1770448500041,10.85652853,2016.1,2015.0,44.13017323]
[1770448500342,10.85652853,2016.1,2014.7,10.97072065]
[1770448500636,10.85652853,2016.1,2014.9,10.97072065]
[1770448500836,10.85652853,2016.4,2014.9,10.97072065]
[1770448501032,10.85652853,2017.2,2015.7,10.97072065]
[1770448501237,10.85652853,2017.2,2015.4,10.97072065]
[1770448501433,10.85652853,2017.2,2015.4,10.94723076]
[1770448501647,10.85652853,2016.6,2015.6,10.97072065]
[1770448501843,10.85652853,2016.6,2014.7,4.8117564]
[1770448501844,10.85652853,2016.6,2015.7,44.12499283]
[1770448502150,10.8616676,2016.6,2015.2,10.97072065]
[1770448502345,10.8616676,2016.6,2015.4,10.97072065]
[1770448502546,0.00513907,2016.6,2015.4,10.97072065]
[1770448502745,10.8616676,2016.6,2015.6,10.97072065]
[1770448502944,10.85652853,2017.0,2015.6,10.97072065]
[1770448503241,10.45932853,2017.0,2015.8,10.97072065]
[1770448503442,10.85652853,2016.5,2014.9,44.12499283]
[1770448503649,10.85652853,2016.5,2015.1,10.97072065]
[1770448503943,10.85652853,2018.2,2016.2,10.97072065]
[1770448504139,10.85652853,2017.5,2016.2,0.00470591]
[1770448504345,10.85652853,2016.4,2014.6,10.97072065]
[1770448504546,10.85652853,2016.4,2015.1,10.97072065]
[1770448504746,10.85652853,2016.4,2014.8,10.97072065]
[1770448505144,10.85652853,2016.4,2015.0,10.97072065]
[1770448505350,10.86291307,2016.4,2015.0,10.97664206]
[1770448505545,10.86291307,2016.4,2015.1,55.09571348]
[1770448505845,10.86291307,2016.4,2015.2,11.7991004]
[1770448506247,10.86291307,2016.4,2015.3,55.92409323]
[1770448506447,10.86291307,2016.4,2015.2,11.7991004]
[1770448506949,10.86291307,2016.4,2015.4,11.7991004]
[1770448507147,10.86291307,2016.4,2015.5,44.12499283]
[1770448507344,10.86291307,2016.4,2015.1,11.7991004]
[1770448507345,10.86291307,2016.4,2015.1,55.92409323]
[1770448507548,10.86291307,2016.4,2015.0,0.00592141]
[1770448507549,15.67466947,2016.4,2015.0,0.00592141]
[1770448507746,11.53009193,2016.3,2015.0,44.13091424]
[1770448508249,4.8117564,2016.0,2013.7,11.80261926]
[1770448508548,0.00638454,2016.4,2014.0,11.80261926]
[1770448508845,4.8117564,2016.2,2014.3,11.80261926]
[1770448509049,0.00461796,2016.3,2014.3,11.80261926]
[1770448509256,0.00461796,2016.3,2014.5,11.80261926]
[1770448509753,0.00461796,2016.2,2014.5,14.01498303]
[1770448509950,0.03928714,2015.8,2014.5,14.01498303]
[1770448510152,0.03928714,2015.8,2014.3,0.0034999]
[1770448510354,0.03928714,2015.8,2014.3,14.01848293]
[1770448511048,0.03928714,2015.4,2014.3,14.01848293]
[1770448511252,0.03928714,2015.4,2014.3,0.0034999]
[1770448511452,0.03928714,2015.4,2014.3,14.01848293]
[1770448511755,0.03928714,2015.4,2014.3,0.0034999]
[1770448511947,0.15944182,2015.0,2013.1,11.72520733]
[1770448512147,0.15944182,2015.5,2014.1,11.72520733]
[1770448512549,0.15944182,2015.9,2014.8,17.61641854]
[1770448512957,0.15944182,2015.9,2014.8,0.00616246]
[1770448513255,0.15327936,2015.7,2014.3,11.72520733]
[1770448513647,0.15327936,2015.7,2014.4,14.01498303]
[1770448513852,0.15327936,2015.7,2013.9,11.72828856]
[1770448514055,0.15327936,2015.7,2014.0,14.01498303]
[1770448514248,0.25860872,2015.3,2014.1,11.67562388]
[1770448514654,0.25860872,2015.6,2014.3,11.67562388]
[1770448515055,0.25860872,2015.6,2014.4,25.69060691]
[1770448515250,9.18766875,2015.2,2013.7,11.55264252]
[1770448515454,9.18766875,2015.2,2013.3,11.55264252]
[1770448515956,9.18766875,2015.2,2013.5,11.55264252]
[1770448516460,4.92557985,2015.1,2013.6,14.01498303]
[1770448516650,11.36610198,2014.8,2013.5,0.00645165]
[1770448516849,11.61978191,2014.8,2013.5,14.01498303]
[1770448517151,11.61978191,2014.8,2013.1,11.55264252]
[1770448517349,11.61978191,2014.8,2013.2,14.01498303]
[1770448517552,11.36610198,2014.4,2012.5,11.55264252]
[1770448517865,11.36610198,2014.4,2012.5,11.55544096]
[1770448518157,11.36610198,2014.4,2012.7,11.55264252]
[1770448518755,11.36610198,2014.4,2012.9,11.55264252]
[1770448518954,11.36610198,2014.4,2013.0,25.56762555]
[1770448519149,5.02158011,2014.3,2012.6,14.01498303]
[1770448519349,5.02158011,2014.3,2009.9,1.14506]
[1770448519350,40.69050284,2012.8,2006.9,1.14679]
[1770448519555,4.8117564,2011.9,2008.8,0.24906]
[1770448519760,4.8117564,2012.8,2010.1,11.55264252]
[1770448519961,11.62761533,2013.0,2010.9,11.55264252]
[1770448520164,11.62761533,2013.0,2011.7,11.55264252]
[1770448520360,11.62761533,2013.0,2012.0,4.8117564]
[1770448520361,11.63296795,2013.0,2012.0,4.8117564]
[1770448520654,11.63296795,2013.0,2012.0,16.36439892]
[1770448520862,0.00535262,2013.0,2012.1,23.10528504]
[1770448521163,0.00535262,2013.0,2012.2,11.55264252]
[1770448521356,0.00535262,2013.0,2012.1,22.69264504]
[1770448521656,0.00535262,2013.0,2012.2,11.55264252]
[1770448521858,11.62761533,2013.5,2012.3,11.55264252]
[1770448522053,11.62761533,2013.3,2012.1,11.14000252]
[1770448522260,11.62761533,2013.1,2012.1,11.14000252]
[1770448522454,16.75645915,2013.0,2012.1,11.14000252]
[1770448522657,11.62761533,2013.0,2012.1,11.14000252]
[1770448522852,11.63140138,2013.0,2012.1,11.14439105]
[1770448523055,52.2516574,2013.9,2012.6,4.8117564]
[1770448523256,11.62761533,2013.9,2012.7,11.55264252]
[1770448523461,11.62761533,2014.2,2013.1,11.55264252]
[1770448523760,5.11914532,2014.1,2013.1,11.55264252]
[1770448523958,11.62761533,2014.6,2013.4,11.55264252]
[1770448524258,0.00548734,2014.6,2013.8,11.55264252]
[1770448524456,0.00548734,2014.6,2013.8,11.55782005]
[1770448524654,0.00548734,2014.6,2013.9,22.69264504]
[1770448524852,11.63310267,2014.6,2013.9,11.14000252]
[1770448525061,11.62761533,2014.4,2013.8,9.35277198]
[1770448525263,0.00548734,2014.6,2013.8,9.35277198]
[1770448525953,11.62761533,2014.4,2013.8,0.00396114]
[1770448526149,11.62761533,2014.2,2012.8,11.55264252]
[1770448526350,11.62761533,2014.2,2013.0,11.55264252]
[1770448526554,5.02362165,2014.1,2013.0,11.55264252]
[1770448526753,52.25714474,2014.6,2013.2,11.55264252]
[1770448526954,11.62761533,2014.4,2013.2,11.55264252]
[1770448527258,11.62761533,2014.2,2012.9,11.55264252]
[1770448527558,11.62761533,2014.0,2013.6,17.61641854]
[1770448527755,11.62761533,2014.0,2012.9,11.55264252]
[1770448528156,11.62761533,2014.4,2012.9,11.55264252]
[1770448528457,4.98113105,2014.3,2012.9,11.55264252]
[1770448528653,4.98113105,2014.3,2012.4,4.8117564]
[1770448528654,4.98113105,2014.2,2013.1,11.55264252]
[1770448528853,4.98031819,2014.1,2013.1,11.55264252]
[1770448529057,11.62761533,2014.4,2013.1,11.55264252]
[1770448529257,11.62761533,2014.2,2012.5,11.55264252]
[1770448529453,11.62761533,2013.8,2012.5,11.55264252]
[1770448529653,11.62761533,2013.6,2012.5,11.55264252]
[1770448529859,11.62761533,2013.6,2011.8,5.0604464]